bitfinex/quotes_ETHUSD_20250130
["timestamp","ask_amount","ask_price","bid_price","bid_amount"]
[1738260000181,3.0314,3275.4,3275.0,0.55]
[1738260000388,3.05296,3275.5,3275.0,0.55]
[1738260000718,3.05313,3275.4,3275.0,0.55]
[1738260000870,0.7655,3275.6,3275.0,0.55]
[1738260001070,3.05324,3275.3,3275.0,0.55]
[1738260001284,3.05311,3275.4,3275.0,0.55]
[1738260001621,3.05311,3275.4,3275.0,0.95296771]
[1738260001970,3.05311,3275.4,3275.2,0.55]
[1738260002812,3.05278,3275.7,3275.2,0.55]
[1738260003126,3.05274,3275.8,3275.3,3.05313]
[1738260003389,3.05267,3275.9,3275.3,3.05313]
[1738260003654,3.05269,3275.8,3275.5,0.55]
[1738260003820,3.05269,3275.8,3275.5,1.3409]
[1738260004506,3.05236,3276.2,3275.8,0.55]
[1738260004674,3.05247,3276.1,3275.8,0.55]
[1738260004880,3.05247,3276.1,3275.6,0.55]
[1738260005212,3.05247,3276.1,3275.8,0.55]
[1738260005505,3.05208,3276.5,3276.0,0.55]
[1738260005737,3.05208,3276.5,3275.9,3.85334]
[1738260005875,3.05208,3276.5,3276.0,0.55]
[1738260006075,3.05208,3276.5,3276.2,0.55]
[1738260006426,3.86788,3276.7,3276.2,0.55]
[1738260006427,3.05196,3276.6,3276.2,0.55]
[1738260007021,0.7533,3276.9,3276.2,0.55]
[1738260007202,3.0519,3276.7,3276.2,0.55]
[1738260007432,3.0519,3276.7,3276.4,0.55]
[1738260008332,6.10382,3276.7,3276.4,0.55]
[1738260008496,3.05203,3276.5,3276.4,0.55]
[1738260008710,3.0519,3276.7,3276.0,3.63183016]
[1738260008711,0.03064018,3276.7,3276.0,0.7891]
[1738260009041,3.05229,3276.3,3275.9,0.55]
[1738260009238,3.0525,3276.0,3275.8,1.26221942]
[1738260009402,3.0525,3276.0,3275.8,1.71665268]
[1738260009607,6.10472,3276.2,3275.9,0.55]
[1738260009802,3.05216,3276.4,3275.9,0.55]
[1738260010007,3.05223,3276.3,3275.9,0.55]
[1738260011030,3.86778,3276.6,3275.9,0.55]
[1738260011274,3.0519,3276.7,3276.1,3.6024]
[1738260011452,3.0519,3276.7,3276.3,1.3665]
[1738260012740,3.05179,3276.8,3276.3,1.3665]
[1738260012946,3.05177,3276.8,3276.3,1.3665]
[1738260013245,3.05185,3276.7,3276.3,1.3665]
[1738260015217,3.05168,3276.9,3276.3,1.3665]
[1738260015524,0.2496,3277.0,3276.5,0.55]
[1738260015682,0.2496,3277.0,3276.6,0.785]
[1738260016088,0.2496,3277.0,3276.7,0.55]
[1738260017019,3.05175,3276.8,3276.4,1.3349293]
[1738260017184,3.05175,3276.8,3276.5,0.55]
[1738260017517,3.30117,3277.0,3276.5,1.02276595]
[1738260018370,6.35281,3277.0,3276.5,1.02276595]
[1738260018611,3.30117,3277.0,3276.5,1.02276595]
[1738260018813,3.05167,3276.9,3276.5,1.02276595]
[1738260020691,3.05176,3276.8,3276.5,1.02276595]
[1738260021389,3.05188,3276.7,3276.5,0.55]
[1738260021572,3.05188,3276.7,3276.2,0.8148]
[1738260023072,3.05231,3276.2,3275.8,0.8215]
[1738260023325,3.0524,3276.2,3275.6,0.47311942]
[1738260023832,3.05218,3276.4,3275.7,4.14953016]
[1738260023969,3.05218,3276.4,3275.7,7.20225016]
[1738260024169,3.05232,3276.2,3275.8,1.07281696]
[1738260025025,3.05261,3275.9,3275.5,0.47311942]
[1738260025207,3.05261,3275.9,3275.6,0.55]
[1738260025605,3.05236,3276.2,3275.8,0.55]
[1738260026180,3.05224,3276.3,3275.8,0.55]
[1738260026491,3.05224,3276.3,3276.0,0.55]
[1738260027209,3.05234,3276.2,3276.0,0.55]
[1738260028776,3.05246,3276.1,3275.7,0.7526]
[1738260029222,3.05246,3276.1,3275.8,0.55]
[1738260029629,3.05251,3276.0,3275.8,0.55]
[1738260029981,3.05279,3275.7,3275.5,0.47311942]
[1738260030301,3.05279,3275.7,3275.6,0.55]
[1738260030513,3.05278,3275.7,3275.5,0.47311942]
[1738260030832,3.05278,3275.7,3275.5,0.55]
[1738260031182,3.05262,3275.9,3275.5,0.55]
[1738260031374,3.0528,3275.7,3275.5,0.55]
[1738260032429,3.05314,3275.4,3275.2,0.47311942]
[1738260032921,3.05315,3275.3,3275.2,0.47311942]
[1738260033978,3.05315,3275.3,3274.8,4.09194958]
[1738260034180,3.05315,3275.3,3275.0,0.55]
[1738260034394,3.05339,3275.1,3274.8,4.09194958]
[1738260034881,3.05315,3275.3,3274.9,0.55]
[1738260035723,6.10639,3275.3,3274.9,0.55]
[1738260036026,3.05315,3275.3,3274.9,0.55]
[1738260036232,3.05299,3275.5,3274.9,0.55]
[1738260036520,3.05317,3275.3,3274.9,0.55]
[1738260036718,3.05299,3275.5,3274.9,1.31956096]
[1738260036921,0.8308,3275.9,3275.3,0.8118]
[1738260037222,3.05266,3275.9,3275.4,0.55]
[1738260037380,0.7645,3276.1,3275.4,3.39273016]
[1738260037600,3.05226,3276.3,3275.8,1.3641]
[1738260038100,3.05232,3276.2,3275.8,1.3641]
[1738260038321,3.05242,3276.1,3275.8,1.3641]
[1738260038931,3.05266,3275.9,3275.5,1.3831]
[1738260039599,3.05266,3275.9,3275.5,2.15830996]
[1738260039935,3.05243,3276.1,3275.5,2.15830996]
[1738260040138,3.05243,3276.1,3275.5,5.21126996]
[1738260042636,3.05243,3276.1,3275.5,2.15830996]
[1738260043036,3.05234,3276.2,3275.5,5.21126996]
[1738260043352,3.05226,3276.3,3275.6,3.90550195]
[1738260043502,3.05226,3276.3,3275.9,0.55]
[1738260044531,3.05226,3276.3,3276.1,0.55]
[1738260044733,3.05208,3276.5,3276.1,0.55]
[1738260045038,3.05223,3276.3,3276.1,0.55]
[1738260046061,3.05231,3276.2,3276.1,0.55]
[1738260046197,3.05223,3276.3,3275.9,0.55]
[1738260046399,3.05232,3276.2,3275.9,0.55]
[1738260046700,3.05231,3276.2,3275.9,0.55]
[1738260046905,3.05223,3276.3,3275.9,0.55]
[1738260047133,3.05231,3276.2,3275.9,0.55]
[1738260047443,3.05223,3276.3,3275.9,0.55]
[1738260047639,3.0525,3276.0,3275.6,0.47311942]
[1738260047946,3.05278,3275.7,3275.5,2.84273016]
[1738260048239,3.05296,3275.5,3275.4,0.47311942]
[1738260049010,3.05278,3275.7,3275.4,0.47311942]
[1738260049216,3.85805,3276.0,3275.2,2.84273016]
[1738260049427,3.0531,3275.4,3275.2,2.84273016]
[1738260049634,3.05315,3275.3,3275.2,2.84273016]
[1738260049825,3.8652,3275.4,3275.2,2.84273016]
[1738260050008,3.05315,3275.3,3275.2,2.84273016]
[1738260050212,3.05291,3275.6,3275.2,2.84273016]
[1738260050627,3.05297,3275.5,3275.4,2.84273016]
[1738260052553,3.05291,3275.6,3275.1,2.84273016]
[1738260052735,3.05329,3275.2,3275.1,2.84273016]
[1738260053126,0.8073,3275.3,3275.1,3.39273016]
[1738260053320,3.0531,3275.4,3275.1,3.77931512]
[1738260053558,3.0531,3275.4,3275.1,3.39273016]
[1738260053764,3.05324,3275.2,3275.1,3.39273016]
[1738260054128,3.0532,3275.3,3275.1,3.39273016]
[1738260054365,3.05324,3275.2,3275.1,3.39273016]
[1738260054567,3.05324,3275.2,3275.1,2.84273016]
[1738260056968,3.05323,3275.3,3275.1,2.84273016]
[1738260057144,3.0531,3275.4,3275.1,2.84273016]
[1738260057465,3.05317,3275.3,3275.1,2.84273016]
[1738260058057,3.0531,3275.4,3275.1,2.84273016]
[1738260058237,0.8073,3275.5,3275.1,2.84273016]
[1738260058238,3.05316,3275.3,3275.1,2.84273016]
[1738260059575,3.05324,3275.2,3275.1,2.84273016]
[1738260059737,0.8073,3275.5,3275.1,2.84273016]
[1738260060080,3.05324,3275.2,3275.1,2.84273016]
[1738260061153,3.05341,3275.1,3274.8,3.31584958]
[1738260061366,3.05324,3275.2,3274.9,0.55]
[1738260061677,3.05334,3275.1,3274.9,0.55]
[1738260061979,3.05343,3275.0,3274.9,0.55]
[1738260062283,3.05324,3275.2,3274.9,0.55]
[1738260062678,3.0531,3275.4,3275.1,3.59413016]
[1738260063073,3.05315,3275.3,3275.1,3.59413016]
[1738260063270,3.0532,3275.3,3275.1,3.59413016]
[1738260063700,3.05324,3275.2,3275.1,2.84273016]
[1738260064048,3.05324,3275.2,3274.9,0.93658496]
[1738260064259,3.05343,3275.0,3274.9,0.93658496]
[1738260064588,3.05343,3275.0,3274.8,3.31584958]
[1738260064961,0.7549,3275.5,3274.9,0.55]
[1738260065161,3.05319,3275.3,3274.9,0.55]
[1738260065360,3.05315,3275.4,3274.9,0.55]
[1738260065560,3.05321,3275.3,3274.9,0.55]
[1738260065887,3.05325,3275.2,3274.9,0.55]
[1738260066972,6.10657,3275.2,3274.9,0.55]
[1738260067367,3.05325,3275.2,3274.9,0.55]
[1738260067569,3.05341,3275.1,3274.9,0.55]
[1738260073388,3.05331,3275.2,3274.9,0.55]
[1738260074779,6.10643,3275.3,3274.9,0.55]
[1738260074977,3.05319,3275.3,3274.9,0.55]
[1738260075187,3.05327,3275.2,3274.9,0.55]
[1738260075397,3.05326,3275.2,3274.9,0.55]
[1738260075764,3.05338,3275.1,3274.9,0.55]
[1738260077088,3.05338,3275.1,3274.9,1.02311942]
[1738260077704,3.05334,3275.1,3274.9,1.02311942]
[1738260078204,3.87967018,3275.0,3274.9,0.47311942]
[1738260078621,3.88717018,3275.0,3274.9,0.47311942]
[1738260078838,3.88717018,3275.0,3274.0,0.3063]
[1738260078839,3.05427,3274.1,3274.0,0.3063]
[1738260078997,3.05427,3274.1,3273.9,2.84273016]
[1738260079193,3.05418,3274.2,3273.3,3.4677015]
[1738260079371,3.05459,3273.8,3273.3,3.27255031]
[1738260079580,3.05475,3273.6,3273.3,3.27255031]
[1738260079978,3.05475,3273.6,3273.4,0.55]
[1738260080177,3.05475,3273.6,3273.3,0.42982015]
[1738260080410,3.05455,3273.8,3273.2,0.8305]
[1738260080599,3.05455,3273.8,3273.3,3.39273016]
[1738260080797,0.7772,3274.1,3273.3,6.44770016]
[1738260080972,3.05468,3273.7,3273.3,3.39273016]
[1738260081698,3.05447,3273.9,3273.3,3.39273016]
[1738260082009,0.7772,3274.1,3273.4,0.42232302]
[1738260082010,0.03064018,3274.0,3273.4,0.42232302]
[1738260082314,3.05483,3273.5,3273.3,0.55]
[1738260082723,3.05465,3273.7,3273.3,0.55]
[1738260082909,3.05449,3273.9,3273.3,0.55]
[1738260083117,3.05406,3274.4,3273.8,0.826]
[1738260083315,0.8048,3274.7,3274.2,3.05412]
[1738260083625,3.05379,3274.7,3274.1,0.55]
[1738260083837,3.05382,3274.6,3274.1,0.55]
[1738260083999,3.00382,3274.6,3274.1,0.55]
[1738260084195,6.10758,3274.7,3274.1,0.55]
[1738260084426,3.05379,3274.7,3274.1,1.23900722]
[1738260084907,3.05388,3274.6,3274.1,1.23900722]
[1738260085310,0.03064018,3274.6,3274.1,1.23900722]
[1738260085484,6.10776,3274.6,3274.0,0.55]
[1738260085690,3.05387,3274.6,3274.0,0.55]
[1738260086372,3.05365,3274.8,3274.0,3.60434]
[1738260086498,0.8258,3275.9,3274.6,2.84273016]
[1738260086830,3.05316,3275.3,3274.7,1.3344]
[1738260087004,3.05296,3275.5,3275.0,0.55]
[1738260087384,3.05296,3275.5,3275.0,0.58053126]
[1738260087691,3.05306,3275.4,3274.8,0.55]
[1738260088487,3.05306,3275.4,3274.7,0.55]
[1738260088688,3.05306,3275.4,3274.8,0.36770032]
[1738260088896,3.05306,3275.4,3275.0,0.8233]
[1738260089321,3.05334,3275.1,3274.4,0.7641]
[1738260089499,3.05427,3274.1,3273.7,9.6941]
[1738260089715,3.05437,3274.0,3273.7,0.7641]
[1738260089912,3.05437,3274.0,3273.8,0.36068302]
[1738260090172,3.05453,3273.9,3273.3,5.37]
[1738260090322,0.03064018,3274.0,3273.3,5.37]
[1738260090662,3.05465,3273.7,3273.3,5.37]
[1738260091384,3.80971,3274.1,3273.4,2.84273016]
[1738260091661,3.05444,3274.0,3273.5,0.55]
[1738260091834,0.7554,3274.1,3273.5,1.43892695]
[1738260092042,3.05461,3273.8,3273.5,1.43892695]
[1738260092783,0.7554,3274.1,3273.3,5.37]
[1738260092784,3.08500018,3274.0,3273.3,5.37]
[1738260092928,3.05492,3273.4,3273.3,5.37]
[1738260093127,3.05492,3273.4,3272.9,0.55]
[1738260093859,3.05521,3273.1,3272.8,3.62263016]
[1738260094069,3.0553,3273.0,3272.8,3.62263016]
[1738260094366,3.05558,3272.7,3272.6,5.37]
[1738260094665,3.05558,3272.7,3272.5,0.05]
[1738260094666,3.05567,3272.6,3272.5,0.05]
[1738260095966,3.81907,3272.6,3272.5,0.05]
[1738260096641,3.84971018,3272.6,3272.5,0.05]
[1738260096862,3.81907,3272.6,3272.5,0.05]
[1738260098646,6.85721018,3272.6,3272.5,1e-05]
[1738260098841,6.82657,3272.6,3272.5,1e-05]
[1738260104068,6.92657,3272.6,3272.5,1e-05]
[1738260105047,7.12657,3272.6,3272.5,1e-05]
[1738260106561,7.74493055,3272.6,3272.5,1e-05]
[1738260110016,7.44493055,3272.6,3272.5,1e-05]
[1738260110519,4.44493055,3272.6,3272.5,1e-05]
[1738260110693,4.47557073,3272.6,3272.5,1e-05]
[1738260110878,7.47557073,3272.6,3272.5,1e-05]
[1738260111084,7.44493055,3272.6,3272.5,1e-05]
[1738260111304,6.82657,3272.6,3272.5,1e-05]
[1738260113921,6.06317,3272.6,3272.5,1e-05]
[1738260116801,6.09381018,3272.6,3272.5,1e-05]
[1738260122645,6.06317,3272.6,3272.5,1e-05]
[1738260122837,6.05567,3272.6,3272.5,1e-05]
[1738260123525,9.75714034,3272.6,3272.5,1e-05]
[1738260123725,3.0566,3271.6,3271.5,8.93]
[1738260123936,3.05679,3271.4,3271.3,8.93]
[1738260129552,3.05707,3271.1,3271.0,8.93]
[1738260129964,3.06466,3271.0,3270.9,5.37]
[1738260130326,3.05716,3271.0,3270.9,5.37]
[1738260130529,3.05716,3271.0,3270.9,6.1994]
[1738260131346,3.05716,3271.0,3270.9,5.37]
[1738260134771,3.05716,3271.0,3270.9,5.92]
[1738260135543,3.05716,3271.0,3270.9,14.85]
[1738260139282,3.05716,3271.0,3270.9,15.91390638]
[1738260141340,3.05716,3271.0,3270.9,14.85]
[1738260143576,3.05685,3271.4,3271.1,0.7555]
[1738260143781,3.05685,3271.4,3271.2,0.55]
[1738260143974,3.05674,3271.5,3271.2,14.85]
[1738260144172,3.05674,3271.5,3271.4,3.39273016]
[1738260145161,3.05674,3271.5,3271.4,0.55]
[1738260145494,3.05666,3271.6,3271.4,0.55]
[1738260145660,3.05666,3271.6,3271.5,0.55]
[1738260146244,3.05654,3271.7,3271.5,1.359]
[1738260146586,3.05642,3271.8,3271.7,0.55]
[1738260148483,3.05627,3272.0,3271.7,3.39273016]
[1738260149185,3.05627,3272.0,3271.7,0.55]
[1738260149382,6.11258,3272.0,3271.7,0.55]
[1738260149621,3.05627,3272.0,3271.7,0.55]
[1738260149817,3.05627,3272.0,3271.7,2.1159]
[1738260150401,3.05627,3272.0,3271.9,0.55]
[1738260156308,3.05627,3272.0,3271.9,14.85]
[1738260161415,3.05627,3272.0,3271.9,14.3]
[1738260161615,3.81817,3272.0,3271.9,14.3]
[1738260162275,3.81817,3272.0,3271.9,5.37]
[1738260163350,3.05627,3272.0,3271.9,5.37]
[1738260163512,3.0566,3271.6,3271.5,5.37]
[1738260163910,6.0566,3271.6,3271.5,5.37]
[1738260164115,8.89933016,3271.6,3271.5,5.37]
[1738260164315,3.05716,3271.0,3270.9,8.93]
[1738260166532,3.05716,3271.0,3270.9,9.48]
[1738260168232,3.05716,3271.0,3270.9,14.85]
[1738260169602,3.05716,3271.0,3270.9,15.6647]
[1738260169810,3.05682,3271.4,3271.0,0.55]
[1738260170111,3.0566,3271.6,3271.5,0.55]
[1738260174060,3.0566,3271.6,3271.5,14.85]
[1738260174682,3.05651,3271.8,3271.5,17.69273016]
[1738260174892,3.05649,3271.8,3271.5,17.69273016]
[1738260175186,3.84688,3272.3,3271.5,17.69273016]
[1738260175368,3.05648,3271.8,3271.7,0.55]
[1738260176048,3.05608,3272.2,3271.7,14.85]
[1738260176255,3.05592,3272.4,3272.0,0.55]
[1738260176472,3.05592,3272.4,3272.0,1.86354302]
[1738260176721,3.05585,3272.5,3272.3,1.3192]
[1738260176849,3.05572,3272.6,3272.4,14.85]
[1738260177060,3.05552,3272.8,3272.5,3.39273016]
[1738260177283,3.05552,3272.8,3272.7,0.55]
[1738260177475,3.05516,3273.2,3272.7,16.67427302]
[1738260177673,3.05521,3273.1,3272.9,0.55]
[1738260178064,3.0553,3273.0,3272.9,0.55]
[1738260178578,3.05524,3273.1,3272.9,0.55]
[1738260178762,3.05512,3273.2,3272.9,0.55]
[1738260179061,3.05505,3273.3,3272.9,0.55]
[1738260179062,3.05521,3273.1,3272.9,0.55]
[1738260179275,3.05491,3273.5,3273.0,15.6549]
[1738260179458,3.05491,3273.5,3273.1,3.39273016]
[1738260179987,3.05494,3273.4,3273.1,3.39273016]
[1738260180381,3.05491,3273.5,3273.1,3.39273016]
[1738260180582,6.10983,3273.5,3273.1,5.39099318]
[1738260180778,3.05491,3273.5,3273.1,5.39099318]
[1738260180955,3.05508,3273.3,3273.1,5.39099318]
[1738260181791,3.05511,3273.2,3273.1,0.55]
[1738260182990,3.05511,3273.2,3273.1,14.85]
[1738260183394,3.05504,3273.3,3273.1,14.85]
[1738260184277,3.05511,3273.2,3273.1,14.85]
[1738260185124,3.05482,3273.6,3273.1,18.52503016]
[1738260185417,3.05482,3273.6,3273.2,1.85250302]
[1738260185580,6.10965,3273.6,3273.2,1.85250302]
[1738260185781,3.05482,3273.6,3273.2,1.85250302]
[1738260186258,3.05459,3273.8,3273.3,0.55]
[1738260186467,3.05426,3274.2,3273.8,0.55]
[1738260186662,3.05426,3274.2,3274.0,2.84273016]
[1738260187022,3.05427,3274.1,3274.0,14.85]
[1738260188259,3.05409,3274.3,3274.1,0.55]
[1738260188491,3.87793,3274.5,3274.1,0.55]
[1738260188692,6.05381,3274.6,3274.1,0.55]
[1738260189467,0.7783,3274.8,3274.3,1.3369]
[1738260189468,3.05367,3274.8,3274.3,1.3369]
[1738260189797,3.05371,3274.7,3274.3,4.17963016]
[1738260190319,3.05383,3274.6,3274.3,1.3369]
[1738260190603,0.7783,3275.1,3274.3,1.3369]
[1738260190604,3.05378,3274.7,3274.3,1.3369]
[1738260190798,3.05381,3274.6,3274.3,1.3369]
[1738260191319,3.05378,3274.7,3274.3,1.3369]
[1738260192064,3.05378,3274.7,3274.3,3.0796345]
[1738260192270,3.05355,3274.9,3274.3,5.92236466]
[1738260192481,3.05355,3274.9,3274.5,0.55]
[1738260192718,3.05373,3274.7,3274.5,0.55]
[1738260192872,3.0538,3274.6,3274.5,0.55]
[1738260195872,3.05357,3274.9,3274.5,0.55]
[1738260196226,3.0537,3274.8,3274.5,0.55]
[1738260196589,3.05377,3274.7,3274.5,0.55]
[1738260197993,3.05377,3274.7,3274.6,14.3]
[1738260199031,3.05377,3274.7,3274.6,15.1249]
[1738260199531,3.05345,3275.0,3274.7,0.55]
[1738260200031,3.05353,3274.9,3274.7,0.55]
[1738260200389,3.05336,3275.1,3274.7,0.55]
[1738260200576,3.05353,3274.9,3274.7,0.55]
[1738260203782,3.05362,3274.8,3274.7,0.55]
[1738260205136,3.05353,3274.9,3274.4,0.55]
[1738260205137,3.05392,3274.5,3274.4,0.55]
[1738260205434,3.05392,3274.5,3274.1,0.82]
[1738260205594,3.05407,3274.4,3274.1,0.82]
[1738260205774,3.05407,3274.4,3274.2,0.55]
[1738260206675,3.05376,3274.7,3274.3,2.84273016]
[1738260206932,3.05355,3274.9,3274.4,0.55]
[1738260207583,3.05378,3274.7,3274.4,0.55]
[1738260207780,3.05401,3274.4,3274.1,1.18627302]
[1738260207934,3.05401,3274.4,3274.1,0.82]
[1738260208134,3.05401,3274.4,3274.2,0.55]
[1738260208537,3.05401,3274.4,3274.3,0.83470909]
[1738260209136,6.10771,3274.6,3274.3,0.83470909]
[1738260209342,3.05394,3274.5,3274.3,0.83470909]
[1738260209755,3.05382,3274.6,3274.3,0.83470909]
[1738260209965,3.05382,3274.6,3274.5,0.55]
[1738260212097,0.0075,3274.3,3274.1,5.37]
[1738260212395,3.87128,3274.2,3274.1,5.37]
[1738260212864,3.05418,3274.2,3274.1,5.37]
[1738260215687,3.05418,3274.2,3274.1,14.3]
[1738260216771,6.86188,3274.2,3274.1,14.3]
[1738260217766,6.86188,3274.2,3274.1,11.24572]
[1738260221834,6.86188,3274.2,3274.1,2.31572]
[1738260222995,3.05492,3273.4,3273.3,5.37]
[1738260231163,3.05492,3273.4,3273.3,5.92]
[1738260235317,3.05483,3273.5,3273.4,0.55]
[1738260237222,3.05492,3273.4,3273.3,5.37]
[1738260237602,3.05492,3273.4,3273.3,5.92]
[1738260238316,3.05492,3273.4,3273.3,5.37]
[1738260242034,3.05492,3273.4,3273.3,5.92]
[1738260242237,3.05451,3273.9,3273.4,0.55]
[1738260242730,3.05456,3273.8,3273.6,0.55]
[1738260244420,0.8275,3274.2,3273.6,0.55]
[1738260244421,3.88169,3274.2,3273.6,11.98471]
[1738260244629,3.05437,3274.0,3273.7,9.7398]
[1738260244937,3.05437,3274.0,3273.7,9.72411108]
[1738260245151,3.0,3274.1,3273.7,11.54057308]
[1738260245435,6.05427,3274.1,3273.7,11.54057308]
[1738260245642,3.05444,3274.0,3273.7,11.54057308]
[1738260245817,3.05444,3274.0,3273.7,9.72411108]
[1738260246541,3.05421,3274.2,3273.7,9.72411108]
[1738260246751,0.7525,3274.7,3273.8,14.85]
[1738260246898,3.05377,3274.7,3274.2,3.60416]
[1738260247108,3.05334,3275.1,3274.4,0.55]
[1738260247343,3.05349,3275.0,3274.5,14.3]
[1738260247698,3.05359,3274.9,3274.5,14.3]
[1738260247906,3.0538,3274.6,3274.5,14.3]
[1738260251416,3.0538,3274.6,3274.5,5.37]
[1738260252645,3.8009,3274.0,3273.5,14.3]
[1738260252942,3.05523,3273.1,3272.8,15.0911]
[1738260253146,3.0553,3273.0,3272.9,8.93]
[1738260253445,3.83799,3272.9,3272.8,5.37]
[1738260253621,6.11096,3272.8,3272.3,5.37]
[1738260253823,3.05579,3272.5,3272.3,5.37]
[1738260254152,3.05586,3272.4,3272.3,5.37]
[1738260254514,3.05586,3272.4,3271.3,3.05686]
[1738260254515,3.05642,3271.8,3271.7,0.8107]
[1738260254717,3.05642,3271.8,3271.6,14.3]
[1738260254916,3.05642,3271.8,3271.7,8.93]
[1738260255526,3.05626,3272.0,3271.7,8.93]
[1738260255933,3.05682,3271.4,3271.0,0.8174]
[1738260256127,3.05704,3271.2,3271.0,8.93]
[1738260256676,3.05704,3271.2,3270.8,8.93]
[1738260256836,3.05718,3271.0,3270.8,8.93]
[1738260257850,3.05726,3270.9,3270.8,8.93]
[1738260259867,3.05715,3271.1,3270.8,8.93]
[1738260260319,3.05715,3271.1,3270.5,8.93]
[1738260260519,3.0,3271.2,3270.5,8.93]
[1738260260747,3.0571,3271.1,3270.5,8.93]
[1738260260957,3.057,3271.2,3270.5,11.9876]
[1738260261156,3.057,3271.2,3270.5,14.83033016]
[1738260261470,0.0075,3271.5,3270.6,3.05747]
[1738260261471,3.05679,3271.4,3270.6,3.05747]
[1738260261626,3.05679,3271.4,3270.8,0.7825]
[1738260262152,3.0567,3271.5,3270.8,6.68256016]
[1738260262820,3.05681,3271.4,3270.8,3.62523016]
[1738260263019,3.05691,3271.3,3270.8,3.62523016]
[1738260263215,3.05704,3271.2,3270.8,0.7825]
[1738260263466,0.0075,3271.0,3270.5,8.93]
[1738260263618,3.05751,3270.7,3270.4,5.37]
[1738260264261,0.61980109,3271.2,3270.6,3.05754]
[1738260264262,0.61230109,3271.2,3270.6,3.05754]
[1738260264487,3.05698,3271.2,3270.8,2.84273016]
[1738260264683,3.0,3271.1,3270.5,6.45036016]
[1738260264885,3.05741,3270.8,3270.4,5.37]
[1738260265226,3.05748,3270.7,3270.4,5.37]
[1738260265769,3.05763,3270.5,3270.4,5.37]
[1738260266058,3.05792,3270.2,3270.0,8.93]
[1738260266256,0.0075,3270.1,3269.6,2.84273016]
[1738260266465,3.05821,3269.9,3269.5,0.7872]
[1738260266978,3.05806,3270.1,3269.5,0.7872]
[1738260267195,3.05818,3270.0,3269.5,0.7872]
[1738260267367,3.08885018,3269.9,3269.5,0.7872]
[1738260267577,3.05806,3270.1,3269.5,0.7872]
[1738260268083,3.05806,3270.1,3269.5,4.55380816]
[1738260268286,3.05806,3270.1,3269.6,2.84273016]
[1738260269563,3.05784,3270.3,3269.6,5.90112016]
[1738260269763,3.05792,3270.2,3269.6,5.90112016]
[1738260270491,0.0075,3270.5,3269.6,5.90112016]
[1738260273276,3.05791,3270.2,3269.6,22.13962199]
[1738260274170,3.05791,3270.2,3269.6,20.20112016]
[1738260274583,3.05802,3270.1,3269.6,17.14273016]
[1738260274789,3.05811,3270.0,3269.6,14.3]
[1738260275315,3.05802,3270.1,3269.7,8.93]
[1738260276109,3.05802,3270.1,3269.6,3.05847]
[1738260276313,3.05802,3270.1,3269.7,8.93]
[1738260276807,6.11572,3270.3,3269.7,13.265944]
[1738260276972,3.05812,3270.0,3269.7,8.93]
[1738260277172,0.03814018,3270.5,3269.5,0.7872]
[1738260277422,3.05846,3269.7,3269.1,0.817]
[1738260277744,3.05846,3269.7,3269.2,3.05883]
[1738260277880,3.05834,3269.8,3269.2,3.05883]
[1738260278079,3.05834,3269.8,3269.2,4.03657902]
[1738260278288,3.86851,3269.9,3269.3,8.93]
[1738260278289,3.86854,3269.9,3269.3,8.93]
[1738260278628,3.05844,3269.7,3269.3,8.93]
[1738260278827,3.05831,3269.8,3269.3,8.93]
[1738260280949,3.05848,3269.6,3269.3,8.93]
[1738260283333,3.05833,3269.8,3269.3,11.77273016]
[1738260283504,3.05833,3269.8,3269.3,12.77242657]
[1738260283910,3.05802,3270.1,3269.5,3.05854]
[1738260284117,3.05802,3270.1,3269.6,8.93]
[1738260284319,3.05802,3270.1,3269.6,9.38693212]
[1738260284730,3.0581,3270.0,3269.6,9.38693212]
[1738260285032,3.05801,3270.1,3269.6,9.38693212]
[1738260285211,3.05797,3270.2,3269.6,12.44535212]
[1738260285601,3.05806,3270.1,3269.7,0.45693212]
[1738260285806,3.05806,3270.1,3269.7,1.27643212]
[1738260286349,3.05786,3270.3,3269.7,1.27643212]
[1738260286659,3.05794,3270.2,3269.7,1.27643212]
[1738260286862,3.05786,3270.3,3269.7,1.27643212]
[1738260286863,3.05806,3270.1,3269.7,1.27643212]
[1738260287021,3.05806,3270.1,3269.8,0.45693212]
[1738260287346,3.08875018,3270.0,3269.8,0.45693212]
[1738260287559,3.05811,3270.0,3269.8,0.45693212]
[1738260287917,3.05811,3270.0,3269.9,0.45693212]
[1738260288418,3.08875018,3270.0,3269.9,0.45693212]
[1738260289029,3.05811,3270.0,3269.9,0.45693212]
[1738260289326,3.05811,3270.0,3269.6,8.93]
[1738260290119,3.05811,3270.0,3269.7,8.93]
[1738260290636,3.05823,3269.9,3269.7,8.93]
[1738260291856,6.11628,3270.0,3269.7,8.93]
[1738260292013,3.05811,3270.0,3269.7,8.93]
[1738260292215,3.05794,3270.2,3269.7,8.93]
[1738260292415,3.05807,3270.1,3269.7,8.93]
[1738260292847,3.05794,3270.2,3269.7,10.128848]
[1738260293040,3.05794,3270.2,3269.7,13.187218]
[1738260293236,3.05794,3270.2,3269.8,0.7898]
[1738260294959,3.05773,3270.4,3269.9,5.90086016]
[1738260295526,6.86066,3270.6,3269.9,5.90086016]